[Event "Hull 4NCL GM Tournament"]
[Site "Hull University, Hull, UK"]
[Date "2021.10.22"]
[Round "4.4"]
[White "Murphy, Conor E"]
[Black "Czopor, Maciej"]
[Result "1/2-1/2"]
[TimeControl "90+30"]
[WhiteClock "00:00:44"]
[BlackClock "00:03:08"]
[WhiteElo "2428"]
[BlackElo "2411"]

1. e4 {[%clk 01:22:45]} {[%emt 00:08:13]} c5 {[%clk 01:30:53]} {[%emt
00:00:08]} 2. Nf3 {[%clk 01:23:05]} {[%emt 00:00:09]} e6 {[%clk 01:31:16]}
{[%emt 00:00:08]} 3. d4 {[%clk 01:23:29]} {[%emt 00:00:05]} cxd4 {[%clk
01:31:41]} {[%emt 00:00:06]} 4. Nxd4 {[%clk 01:23:53]} {[%emt 00:00:05]} Nc6
{[%clk 01:32:06]} {[%emt 00:00:05]} 5. Nc3 {[%clk 01:24:14]} {[%emt 00:00:09]}
Qc7 {[%clk 01:32:30]} {[%emt 00:00:07]} 6. Be2 {[%clk 01:23:54]} {[%emt
00:00:49]} a6 {[%clk 01:32:35]} {[%emt 00:00:25]} 7. O-O {[%clk 01:24:05]}
{[%emt 00:00:18]} Nf6 {[%clk 01:33:01]} {[%emt 00:00:06]} 8. Be3 {[%clk
01:24:27]} {[%emt 00:00:06]} Be7 {[%clk 01:33:26]} {[%emt 00:00:07]} 9. f4
{[%clk 01:24:28]} {[%emt 00:00:28]} d6 {[%clk 01:33:50]} {[%emt 00:00:06]} 10.
Qe1 {[%clk 01:24:42]} {[%emt 00:00:16]} O-O {[%clk 01:34:09]} {[%emt 00:00:12]}
11. Qg3 {[%clk 01:25:05]} {[%emt 00:00:06]} Nxd4 {[%clk 01:30:03]} {[%emt
00:04:38]} 12. Bxd4 {[%clk 01:25:27]} {[%emt 00:00:07]} b5 {[%clk 01:30:14]}
{[%emt 00:00:20]} 13. a3 {[%clk 01:25:49]} {[%emt 00:00:07]} Bb7 {[%clk
01:30:23]} {[%emt 00:00:22]} 14. Kh1 {[%clk 01:26:04]} {[%emt 00:00:14]} Rad8
{[%clk 01:27:15]} {[%emt 00:03:39]} 15. Rae1 {[%clk 01:26:09]} {[%emt
00:00:24]} Bc6 {[%clk 01:27:09]} {[%emt 00:00:38]} 16. Bf3 {[%clk 01:24:46]}
{[%emt 00:01:52]} Qb7 {[%clk 01:15:08]} {[%emt 00:12:32]} 17. Nd1 {[%clk
01:24:29]} {[%emt 00:00:46]} d5 {[%clk 00:56:58]} {[%emt 00:18:40]} 18. e5
{[%clk 01:23:20]} {[%emt 00:01:38]} Ne4 {[%clk 00:57:17]} {[%emt 00:00:13]} 19.
Bxe4 {[%clk 01:23:14]} {[%emt 00:00:35]} dxe4 {[%clk 00:57:43]} {[%emt
00:00:04]} 20. Bc3 {[%clk 01:23:32]} {[%emt 00:00:11]} b4 {[%clk 00:48:19]}
{[%emt 00:09:55]} 21. axb4 {[%clk 01:15:02]} {[%emt 00:08:59]} Bxb4 {[%clk
00:48:38]} {[%emt 00:00:11]} 22. f5 {[%clk 01:15:13]} {[%emt 00:00:20]} exf5
{[%clk 00:48:05]} {[%emt 00:01:02]} 23. Rxf5 {[%clk 00:54:40]} {[%emt
00:21:02]} Bxc3 {[%clk 00:43:12]} {[%emt 00:05:23]} 24. bxc3 {[%clk 00:53:13]}
{[%emt 00:01:56]} Qe7 {[%clk 00:28:07]} {[%emt 00:15:36]} 25. Rf6 {[%clk
00:39:11]} {[%emt 00:14:32]} Bd7 {[%clk 00:27:23]} {[%emt 00:01:14]} 26. Rxa6
{[%clk 00:36:44]} {[%emt 00:02:56]} Rfe8 {[%clk 00:22:57]} {[%emt 00:04:56]} 27.
Ne3 {[%clk 00:25:46]} {[%emt 00:11:28]} Qxe5 {[%clk 00:21:05]} {[%emt
00:02:23]} 28. Qxe5 {[%clk 00:20:11]} {[%emt 00:06:05]} Rxe5 {[%clk 00:21:28]}
{[%emt 00:00:07]} 29. Rd1 {[%clk 00:18:56]} {[%emt 00:01:45]} Kf8 {[%clk
00:20:00]} {[%emt 00:01:58]} 30. Rad6 {[%clk 00:16:35]} {[%emt 00:02:49]} Ke7
{[%clk 00:19:01]} {[%emt 00:01:30]} 31. R6d4 {[%clk 00:10:10]} {[%emt
00:06:56]} f5 {[%clk 00:17:13]} {[%emt 00:02:17]} 32. Nd5+ {[%clk 00:08:49]}
{[%emt 00:01:51]} Ke8 {[%clk 00:15:58]} {[%emt 00:01:46]} 33. Kg1 {[%clk
00:04:56]} {[%emt 00:04:22]} e3 {[%clk 00:14:32]} {[%emt 00:01:56]} 34. Re1
{[%clk 00:04:20]} {[%emt 00:01:06]} Rc8 {[%clk 00:13:55]} {[%emt 00:01:07]} 35.
Rd3 {[%clk 00:02:49]} {[%emt 00:02:02]} Be6 {[%clk 00:10:03]} {[%emt 00:04:23]}
36. Rdxe3 {[%clk 00:02:42]} {[%emt 00:00:37]} Rxe3 {[%clk 00:10:24]} {[%emt
00:00:08]} 37. Rxe3 {[%clk 00:03:06]} {[%emt 00:00:06]} Kf7 {[%clk 00:10:45]}
{[%emt 00:00:09]} 38. Nf4 {[%clk 00:03:15]} {[%emt 00:00:21]} Bc4 {[%clk
00:10:48]} {[%emt 00:00:28]} 39. Kf2 {[%clk 00:02:30]} {[%emt 00:01:15]} g5
{[%clk 00:10:42]} {[%emt 00:00:36]} 40. Nd3 {[%clk 00:02:32]} {[%emt 00:00:28]}
Kf6 {[%clk 00:08:47]} {[%emt 00:02:25]} 41. g3 {[%clk 00:02:08]} {[%emt
00:00:53]} Bd5 {[%clk 00:08:13]} {[%emt 00:01:04]} 42. Ne5 {[%clk 00:01:19]}
{[%emt 00:01:19]} Be4 {[%clk 00:08:10]} {[%emt 00:00:33]} 43. Nd7+ {[%clk
00:00:51]} {[%emt 00:00:57]} Ke6 {[%clk 00:08:21]} {[%emt 00:00:19]} 44. Nb6
{[%clk 00:01:13]} {[%emt 00:00:08]} Rc6 {[%clk 00:08:09]} {[%emt 00:00:41]} 45.
Na4 {[%clk 00:01:32]} {[%emt 00:00:12]} Ke5 {[%clk 00:06:34]} {[%emt 00:02:05]}
46. Nb2 {[%clk 00:01:25]} {[%emt 00:00:36]} f4 {[%clk 00:06:47]} {[%emt
00:00:17]} 47. Nd3+ {[%clk 00:01:47]} {[%emt 00:00:08]} Kf5 {[%clk 00:05:17]}
{[%emt 00:02:00]} 48. g4+ {[%clk 00:02:07]} {[%emt 00:00:10]} Kxg4 {[%clk
00:05:39]} {[%emt 00:00:08]} 49. Rxe4 {[%clk 00:02:20]} {[%emt 00:00:16]} Rxc3
{[%clk 00:05:45]} {[%emt 00:00:25]} 50. Re2 {[%clk 00:01:47]} {[%emt 00:01:02]}
h5 {[%clk 00:05:16]} {[%emt 00:00:59]} 51. Rd2 {[%clk 00:01:01]} {[%emt
00:01:16]} Kf5 {[%clk 00:04:18]} {[%emt 00:01:28]} 52. Nc1 {[%clk 00:00:40]}
{[%emt 00:00:51]} g4 {[%clk 00:03:17]} {[%emt 00:01:32]} 53. Ne2 {[%clk
00:00:32]} {[%emt 00:00:37]} Rf3+ {[%clk 00:01:39]} {[%emt 00:02:07]} 54. Kg2
{[%clk 00:00:39]} {[%emt 00:00:24]} Ke4 {[%clk 00:02:05]} {[%emt 00:00:04]} 55.
Nd4 {[%clk 00:00:32]} {[%emt 00:00:36]} Rc3 {[%clk 00:01:52]} {[%emt 00:00:44]}
56. Nb5 {[%clk 00:00:34]} {[%emt 00:00:28]} Rc5 {[%clk 00:02:03]} {[%emt
00:00:18]} 57. c4 {[%clk 00:00:33]} {[%emt 00:00:32]} Ke3 {[%clk 00:02:16]}
{[%emt 00:00:17]} 58. Rd4 {[%clk 00:00:32]} {[%emt 00:00:31]} h4 {[%clk
00:02:17]} {[%emt 00:00:29]} 59. Kf1 {[%clk 00:00:38]} {[%emt 00:00:24]} h3
{[%clk 00:01:57]} {[%emt 00:00:50]} 60. Kg1 {[%clk 00:00:49]} {[%emt 00:00:19]}
g3 {[%clk 00:00:32]} {[%emt 00:01:54]} 61. hxg3 {[%clk 00:01:16]} {[%emt
00:00:03]} fxg3 {[%clk 00:01:01]} {[%emt 00:00:01]} 62. Rh4 {[%clk 00:01:25]}
{[%emt 00:00:21]} h2+ {[%clk 00:00:32]} {[%emt 00:00:59]} 63. Kg2 {[%clk
00:01:39]} {[%emt 00:00:15]} h1=Q+ {[%clk 00:00:36]} {[%emt 00:00:26]} 64. Kxh1
{[%clk 00:01:43]} {[%emt 00:00:27]} Kf2 {[%clk 00:01:02]} {[%emt 00:00:04]} 65.
Rf4+ {[%clk 00:01:38]} {[%emt 00:00:35]} Ke3 {[%clk 00:01:31]} {[%emt
00:00:01]} 66. Rg4 {[%emt 00:01:26]} Kf2 {[%clk 00:01:43]} {[%emt 00:00:16]} 67.
Rf4+ {[%clk 00:00:43]} {[%emt 00:00:31]} Ke3 {[%clk 00:02:09]} {[%emt
00:00:04]} 68. Rd4 {[%clk 00:00:51]} {[%emt 00:00:22]} Kf2 {[%clk 00:02:24]}
{[%emt 00:00:15]} 69. Rd2+ {[%clk 00:00:53]} {[%emt 00:00:28]} Kf1 {[%clk
00:02:42]} {[%emt 00:00:11]} 70. Rd1+ {[%clk 00:01:14]} {[%emt 00:00:10]} Kf2
{[%clk 00:03:08]} {[%emt 00:00:04]} 71. Rd2+ {[%emt 00:00:28]} 1/2-1/2

[Event "Hull 4NCL GM Tournament"]
[Site "Hull University, Hull, UK"]
[Date "2021.10.22"]
[Round "4.5"]
[White "Wadsworth, Matthew J"]
[Black "Davies, Nigel R"]
[Result "1/2-1/2"]
[TimeControl "90+30"]
[WhiteElo "2425"]
[BlackElo "2475"]

1. Nf3 {[%clk 01:30:57]} {[%emt 00:00:02]} Nf6 {[%clk 01:30:42]} {[%emt
00:00:18]} 2. g3 {[%clk 01:31:19]} {[%emt 00:00:09]} d5 {[%clk 01:30:35]}
{[%emt 00:00:36]} 3. Bg2 {[%clk 01:31:38]} {[%emt 00:00:11]} e6 {[%clk
01:30:35]} {[%emt 00:00:30]} 4. O-O {[%clk 01:31:50]} {[%emt 00:00:18]} Be7
{[%clk 01:30:54]} {[%emt 00:00:09]} 5. c4 {[%clk 01:32:14]} {[%emt 00:00:08]}
O-O {[%clk 01:31:17]} {[%emt 00:00:07]} 6. b3 {[%clk 01:32:37]} {[%emt
00:00:06]} c6 {[%clk 01:31:36]} {[%emt 00:00:10]} 7. Bb2 {[%clk 01:32:15]}
{[%emt 00:00:52]} b6 {[%clk 01:31:55]} {[%emt 00:00:11]} 8. Qc2 {[%clk
01:30:31]} {[%emt 00:02:14]} Bb7 {[%clk 01:31:56]} {[%emt 00:00:28]} 9. d3
{[%clk 01:29:35]} {[%emt 00:01:27]} c5 {[%clk 01:31:12]} {[%emt 00:01:14]} 10.
Nbd2 {[%clk 01:26:08]} {[%emt 00:03:58]} Nc6 {[%clk 01:30:43]} {[%emt
00:00:58]} 11. a3 {[%clk 01:25:32]} {[%emt 00:01:07]} d4 {[%clk 01:21:37]}
{[%emt 00:09:35]} 12. b4 {[%clk 01:09:58]} {[%emt 00:16:05]} Qc7 {[%clk
01:12:27]} {[%emt 00:09:39]} 13. bxc5 {[%clk 01:04:37]} {[%emt 00:05:51]} bxc5
{[%clk 01:12:28]} {[%emt 00:00:29]} 14. Rfb1 {[%clk 01:04:57]} {[%emt
00:00:10]} Rab8 {[%clk 01:09:49]} {[%emt 00:03:09]} 15. Bc1 {[%clk 01:03:17]}
{[%emt 00:02:10]} Ba8 {[%clk 01:10:01]} {[%emt 00:00:18]} 16. Rxb8 {[%clk
00:58:17]} {[%emt 00:05:30]} Rxb8 {[%clk 01:10:22]} {[%emt 00:00:08]} 17. Rb1
{[%clk 00:58:36]} {[%emt 00:00:11]} Nd7 {[%clk 01:07:53]} {[%emt 00:02:59]} 18.
Ne1 {[%clk 00:49:14]} {[%emt 00:09:53]} Rxb1 {[%clk 00:57:28]} {[%emt
00:10:54]} 19. Qxb1 {[%clk 00:49:34]} {[%emt 00:00:10]} Qb6 {[%clk 00:57:15]}
{[%emt 00:00:42]} 20. Qb5 {[%clk 00:47:14]} {[%emt 00:02:51]} a6 {[%clk
00:56:01]} {[%emt 00:01:45]} 21. Qa4 {[%clk 00:47:36]} {[%emt 00:00:07]} Bb7
{[%clk 00:55:43]} {[%emt 00:00:48]} 22. Nf1 {[%clk 00:32:16]} {[%emt 00:15:51]}
f6 {[%clk 00:50:29]} {[%emt 00:05:42]} 23. Bd2 {[%clk 00:29:22]} {[%emt
00:03:26]} Kf7 {[%clk 00:50:20]} {[%emt 00:00:38]} 24. h4 {[%clk 00:26:45]}
{[%emt 00:03:07]} Bd8 {[%clk 00:47:30]} {[%emt 00:03:20]} 25. e3 {[%clk
00:20:23]} {[%emt 00:06:53]} Nce5 {[%clk 00:35:51]} {[%emt 00:12:08]} 26. Qd1
{[%clk 00:12:59]} {[%emt 00:07:54]} Bxg2 {[%clk 00:34:33]} {[%emt 00:01:48]} 27.
Kxg2 {[%clk 00:12:27]} {[%emt 00:01:03]} Kg8 {[%clk 00:33:55]} {[%emt
00:01:07]} 28. f4 {[%clk 00:10:10]} {[%emt 00:02:48]} Nf7 {[%clk 00:31:29]}
{[%emt 00:02:55]} 29. e4 {[%clk 00:08:10]} {[%emt 00:02:30]} Qc6 {[%clk
00:30:22]} {[%emt 00:01:37]} 30. Nf3 {[%clk 00:06:05]} {[%emt 00:02:35]} f5
{[%clk 00:29:10]} {[%emt 00:01:41]} 31. e5 {[%clk 00:06:30]} {[%emt 00:00:06]}
Nb6 {[%clk 00:26:44]} {[%emt 00:02:56]} 32. Kf2 {[%clk 00:05:21]} {[%emt
00:01:40]} Qa4 {[%clk 00:23:55]} {[%emt 00:03:17]} 33. Qxa4 {[%clk 00:05:06]}
{[%emt 00:00:46]} Nxa4 {[%clk 00:24:20]} {[%emt 00:00:05]} 34. Ke2 {[%clk
00:05:29]} {[%emt 00:00:07]} Kf8 {[%clk 00:24:29]} {[%emt 00:00:21]} 35. Kd1
{[%clk 00:04:58]} {[%emt 00:01:01]} Ke8 {[%clk 00:24:28]} {[%emt 00:00:31]} 36.
Kc2 {[%clk 00:05:04]} {[%emt 00:00:25]} Kd7 {[%clk 00:24:52]} {[%emt 00:00:06]}
37. N1h2 {[%clk 00:04:09]} {[%emt 00:01:25]} Nb6 {[%clk 00:21:54]} {[%emt
00:03:28]} 38. Kb3 {[%clk 00:03:59]} {[%emt 00:00:41]} Nc8 {[%clk 00:21:58]}
{[%emt 00:00:26]} 39. Ka4 {[%clk 00:03:18]} {[%emt 00:01:11]} Nb6+ {[%clk
00:21:24]} {[%emt 00:01:04]} 40. Kb3 {[%clk 00:03:23]} {[%emt 00:00:25]} Nc8
{[%clk 00:21:41]} {[%emt 00:00:12]} 41. Be1 {[%clk 00:03:39]} {[%emt 00:00:14]}
h5 {[%clk 00:19:20]} {[%emt 00:02:50]} 42. Ng5 {[%clk 00:02:39]} {[%emt
00:01:31]} Bxg5 {[%clk 00:11:05]} {[%emt 00:08:45]} 43. hxg5 {[%clk 00:03:01]}
{[%emt 00:00:09]} Nd8 {[%clk 00:11:30]} {[%emt 00:00:05]} 44. Nf3 {[%clk
00:02:49]} {[%emt 00:00:42]} Ne7 {[%clk 00:11:43]} {[%emt 00:00:16]} 45. Nh4
{[%clk 00:02:54]} {[%emt 00:00:26]} Nb7 {[%clk 00:09:56]} {[%emt 00:02:16]} 46.
Ka4 {[%clk 00:03:12]} {[%emt 00:00:12]} g6 {[%clk 00:09:49]} {[%emt 00:00:38]}
47. Ba5 {[%clk 00:02:45]} {[%emt 00:00:56]} Kc6 {[%clk 00:10:13]} {[%emt
00:00:06]} 48. Bd2 {[%clk 00:02:48]} {[%emt 00:00:28]} Kc7 {[%clk 00:10:30]}
{[%emt 00:00:13]} 49. Be1 {[%clk 00:02:29]} {[%emt 00:00:48]} Kd7 {[%clk
00:10:55]} {[%emt 00:00:06]} 50. Ba5 {[%emt 00:00:25]} 1/2-1/2

[ePGN "0.1;DGT LiveChess/2.2.5"]

[Event "Hull 4NCL GM Tournament"]
[Site "Hull University, Hull, UK"]
[Date "2021.10.22"]
[Round "5.1"]
[White "Davies, Nigel R"]
[Black "Willow, Jonah B"]
[Result "1/2-1/2"]
[TimeControl "90+30"]
[WhiteElo "2475"]
[BlackElo "2353"]

1. g3 {[%clk 01:30:53]} {[%emt 00:00:06]} c5 {[%clk 01:30:49]} {[%emt
00:00:12]} 2. Bg2 {[%clk 01:31:14]} {[%emt 00:00:08]} Nc6 {[%clk 01:31:06]}
{[%emt 00:00:13]} 3. Nf3 {[%clk 01:27:58]} {[%emt 00:03:46]} g6 {[%clk
01:31:08]} {[%emt 00:00:29]} 4. c3 {[%clk 01:28:19]} {[%emt 00:00:08]} e5
{[%clk 01:28:39]} {[%emt 00:02:59]} 5. d4 {[%clk 01:27:49]} {[%emt 00:01:00]}
cxd4 {[%clk 01:27:04]} {[%emt 00:02:06]} 6. cxd4 {[%clk 01:28:12]} {[%emt
00:00:07]} e4 {[%clk 01:27:04]} {[%emt 00:00:30]} 7. Ne5 {[%clk 01:28:31]}
{[%emt 00:00:11]} d5 {[%clk 01:20:30]} {[%emt 00:07:05]} 8. Nxc6 {[%clk
01:21:19]} {[%emt 00:07:42]} bxc6 {[%clk 01:20:48]} {[%emt 00:00:11]} 9. Qc2
{[%clk 01:18:47]} {[%emt 00:03:02]} Bd7 {[%clk 01:17:07]} {[%emt 00:04:11]} 10.
Nc3 {[%clk 01:13:47]} {[%emt 00:05:30]} Bg7 {[%clk 01:16:14]} {[%emt 00:01:24]}
11. e3 {[%clk 01:14:07]} {[%emt 00:00:09]} Ne7 {[%clk 01:15:47]} {[%emt
00:00:57]} 12. b3 {[%clk 01:13:29]} {[%emt 00:01:06]} 1/2-1/2

[Event "Hull 4NCL GM Tournament"]
[Site "Hull University, Hull, UK"]
[Date "2021.10.22"]
[Round "5.2"]
[White "Czopor, Maciej"]
[Black "Wadsworth, Matthew J"]
[Result "1-0"]
[TimeControl "90+30"]
[WhiteElo "2411"]
[BlackElo "2425"]

1. e4 {[%clk 01:30:58]} {[%emt 00:00:02]} c5 {[%clk 01:27:42]} {[%emt
00:03:18]} 2. Nf3 {[%clk 01:31:20]} {[%emt 00:00:07]} e6 {[%clk 01:28:04]}
{[%emt 00:00:07]} 3. d4 {[%clk 01:31:47]} {[%emt 00:00:04]} cxd4 {[%clk
01:28:29]} {[%emt 00:00:05]} 4. Nxd4 {[%clk 01:32:14]} {[%emt 00:00:04]} Nc6
{[%clk 01:28:50]} {[%emt 00:00:08]} 5. Nc3 {[%clk 01:32:33]} {[%emt 00:00:12]}
Qc7 {[%clk 01:29:15]} {[%emt 00:00:05]} 6. Be3 {[%clk 01:32:40]} {[%emt
00:00:23]} a6 {[%clk 01:29:39]} {[%emt 00:00:06]} 7. Qf3 {[%clk 01:33:03]}
{[%emt 00:00:07]} Ne5 {[%clk 01:30:04]} {[%emt 00:00:05]} 8. Qg3 {[%clk
01:33:28]} {[%emt 00:00:04]} h5 {[%clk 01:30:30]} {[%emt 00:00:04]} 9. Nf5
{[%clk 01:32:35]} {[%emt 00:01:23]} f6 {[%clk 01:24:21]} {[%emt 00:06:39]} 10.
O-O-O {[%clk 01:31:37]} {[%emt 00:01:28]} g6 {[%clk 01:08:29]} {[%emt
00:16:23]} 11. f4 {[%clk 01:24:33]} {[%emt 00:07:34]} Ng4 {[%clk 01:07:46]}
{[%emt 00:01:12]} 12. h3 {[%clk 01:19:40]} {[%emt 00:05:23]} Nxe3 {[%clk
00:55:30]} {[%emt 00:12:46]} 13. Qxg6+ {[%clk 01:14:34]} {[%emt 00:05:36]} Kd8
{[%clk 00:55:59]} {[%emt 00:00:01]} 14. Ng7 {[%clk 01:02:51]} {[%emt 00:12:14]}
Bxg7 {[%clk 00:55:47]} {[%emt 00:00:42]} 15. Qxg7 {[%clk 01:03:15]} {[%emt
00:00:06]} Qxf4 {[%clk 00:55:14]} {[%emt 00:01:03]} 16. Qxh8 {[%clk 01:03:09]}
{[%emt 00:00:37]} Nxd1+ {[%clk 00:54:57]} {[%emt 00:00:47]} 17. Kxd1 {[%clk
01:03:33]} {[%emt 00:00:06]} Qg5 {[%clk 00:54:20]} {[%emt 00:01:07]} 18. h4
{[%clk 00:58:28]} {[%emt 00:05:34]} Qg4+ {[%clk 00:53:25]} {[%emt 00:01:25]} 19.
Ne2 {[%clk 00:56:38]} {[%emt 00:02:20]} Kc7 {[%clk 00:46:49]} {[%emt 00:07:06]}
20. Rh3 {[%clk 00:56:33]} {[%emt 00:00:34]} Ne7 {[%clk 00:46:53]} {[%emt
00:00:26]} 21. Qxf6 {[%clk 00:56:14]} {[%emt 00:00:49]} Nc6 {[%clk 00:47:01]}
{[%emt 00:00:22]} 22. Rg3 {[%clk 00:43:48]} {[%emt 00:12:55]} Qxe4 {[%clk
00:46:54]} {[%emt 00:00:37]} 23. Qf4+ {[%clk 00:44:05]} {[%emt 00:00:13]} Qxf4
{[%clk 00:45:11]} {[%emt 00:02:13]} 24. Nxf4 {[%clk 00:44:28]} {[%emt
00:00:07]} e5 {[%clk 00:44:30]} {[%emt 00:01:11]} 25. Nxh5 {[%clk 00:34:02]}
{[%emt 00:10:56]} d5 {[%clk 00:44:50]} {[%emt 00:00:10]} 26. Rg7+ {[%clk
00:32:44]} {[%emt 00:01:48]} Kd6 {[%clk 00:44:49]} {[%emt 00:00:32]} 27. g4
{[%clk 00:33:00]} {[%emt 00:00:14]} Be6 {[%clk 00:44:12]} {[%emt 00:01:07]} 28.
Nf6 {[%clk 00:31:20]} {[%emt 00:02:09]} Rf8 {[%clk 00:42:13]} {[%emt 00:02:29]}
29. g5 {[%clk 00:31:08]} {[%emt 00:00:43]} Nd8 {[%clk 00:40:01]} {[%emt
00:02:41]} 30. Be2 {[%clk 00:29:37]} {[%emt 00:02:01]} e4 {[%clk 00:39:13]}
{[%emt 00:01:19]} 31. c4 {[%clk 00:28:16]} {[%emt 00:01:51]} dxc4 {[%clk
00:36:36]} {[%emt 00:03:07]} 32. Nxe4+ {[%clk 00:28:40]} {[%emt 00:00:06]} Kd5
{[%clk 00:36:16]} {[%emt 00:00:49]} 33. Nf6+ {[%clk 00:27:35]} {[%emt
00:01:36]} Kd4 {[%clk 00:35:59]} {[%emt 00:00:47]} 34. Re7 {[%clk 00:27:25]}
{[%emt 00:00:39]} b5 {[%clk 00:35:14]} {[%emt 00:01:16]} 35. h5 {[%clk
00:26:35]} {[%emt 00:01:19]} Bf5 {[%clk 00:34:29]} {[%emt 00:01:15]} 36. g6
{[%clk 00:22:21]} {[%emt 00:04:45]} Ne6 {[%clk 00:30:13]} {[%emt 00:04:46]} 37.
h6 {[%clk 00:20:22]} {[%emt 00:02:29]} Rd8 {[%clk 00:25:42]} {[%emt 00:05:00]}
38. g7 {[%clk 00:18:08]} {[%emt 00:02:45]} Ke5+ {[%clk 00:25:47]} {[%emt
00:00:25]} 39. Rd7 {[%clk 00:18:30]} {[%emt 00:00:08]} Nxg7 {[%clk 00:25:06]}
{[%emt 00:01:11]} 40. Rxd8 {[%clk 00:18:21]} {[%emt 00:00:40]} Kd5 {[%emt
00:00:09]} 1-0

[Event "Hull 4NCL GM Tournament"]
[Site "Hull University, Hull, UK"]
[Date "2021.10.22"]
[Round "5.3"]
[White "Turner, Matthew J"]
[Black "Murphy, Conor E"]
[Result "0-1"]
[TimeControl "90+30"]
[WhiteClock "00:05:19"]
[BlackClock "00:01:26"]
[WhiteElo "2471"]
[BlackElo "2428"]

1. d4 {[%clk 01:30:55]} {[%emt 00:00:04]} d5 {[%clk 01:25:25]} {[%emt
00:05:35]} 2. Nf3 {[%clk 01:31:14]} {[%emt 00:00:11]} Nf6 {[%clk 01:25:39]}
{[%emt 00:00:15]} 3. c4 {[%clk 01:31:35]} {[%emt 00:00:10]} e6 {[%clk
01:25:54]} {[%emt 00:00:14]} 4. g3 {[%clk 01:31:57]} {[%emt 00:00:08]} dxc4
{[%clk 01:25:19]} {[%emt 00:01:05]} 5. Qa4+ {[%clk 01:31:16]} {[%emt 00:01:11]}
Nbd7 {[%clk 01:25:05]} {[%emt 00:00:44]} 6. Bg2 {[%clk 01:31:22]} {[%emt
00:00:25]} a6 {[%clk 01:25:03]} {[%emt 00:00:31]} 7. Qxc4 {[%clk 01:31:13]}
{[%emt 00:00:39]} b5 {[%clk 01:24:59]} {[%emt 00:00:34]} 8. Qc6 {[%clk
01:27:43]} {[%emt 00:04:01]} Ra7 {[%clk 01:22:42]} {[%emt 00:02:47]} 9. Qc2
{[%clk 01:25:04]} {[%emt 00:03:08]} Bb7 {[%clk 01:17:41]} {[%emt 00:05:31]} 10.
O-O {[%clk 01:24:38]} {[%emt 00:00:56]} c5 {[%clk 01:16:31]} {[%emt 00:01:40]}
11. a4 {[%clk 01:19:55]} {[%emt 00:05:14]} b4 {[%clk 01:14:05]} {[%emt
00:02:56]} 12. Be3 {[%clk 01:05:27]} {[%emt 00:14:58]} Be4 {[%clk 01:09:42]}
{[%emt 00:04:53]} 13. Qd1 {[%clk 01:04:27]} {[%emt 00:01:31]} Rc7 {[%clk
01:05:52]} {[%emt 00:04:20]} 14. Nbd2 {[%clk 01:00:45]} {[%emt 00:04:12]} Bd5
{[%clk 01:03:08]} {[%emt 00:03:14]} 15. Rc1 {[%clk 00:59:03]} {[%emt 00:02:12]}
Be7 {[%clk 00:59:16]} {[%emt 00:04:22]} 16. b3 {[%clk 00:49:31]} {[%emt
00:10:01]} O-O {[%clk 00:56:06]} {[%emt 00:03:40]} 17. Bf4 {[%clk 00:49:27]}
{[%emt 00:00:35]} Rc8 {[%clk 00:55:21]} {[%emt 00:01:15]} 18. Bg5 {[%clk
00:39:04]} {[%emt 00:10:52]} cxd4 {[%clk 00:45:05]} {[%emt 00:10:47]} 19. Nxd4
{[%clk 00:38:34]} {[%emt 00:00:59]} Bxg2 {[%clk 00:44:44]} {[%emt 00:00:50]} 20.
Kxg2 {[%clk 00:38:44]} {[%emt 00:00:21]} Nc5 {[%clk 00:44:41]} {[%emt
00:00:32]} 21. Bxf6 {[%clk 00:33:13]} {[%emt 00:06:02]} Bxf6 {[%clk 00:43:57]}
{[%emt 00:01:14]} 22. N4f3 {[%clk 00:33:21]} {[%emt 00:00:21]} Bc3 {[%clk
00:39:35]} {[%emt 00:04:52]} 23. Qc2 {[%clk 00:31:36]} {[%emt 00:02:16]} Bxd2
{[%clk 00:29:32]} {[%emt 00:10:32]} 24. Qxd2 {[%clk 00:30:43]} {[%emt
00:01:23]} a5 {[%clk 00:26:29]} {[%emt 00:03:33]} 25. Qe3 {[%clk 00:23:58]}
{[%emt 00:07:15]} Qd5 {[%clk 00:24:28]} {[%emt 00:02:31]} 26. Rb1 {[%clk
00:22:37]} {[%emt 00:01:51]} Ne4 {[%clk 00:20:45]} {[%emt 00:04:13]} 27. Rfd1
{[%clk 00:22:17]} {[%emt 00:00:50]} Qb7 {[%clk 00:20:47]} {[%emt 00:00:29]} 28.
Rd4 {[%clk 00:21:44]} {[%emt 00:01:02]} Nc3 {[%clk 00:20:40]} {[%emt 00:00:37]}
29. Rb2 {[%clk 00:21:59]} {[%emt 00:00:16]} Nd5 {[%clk 00:15:28]} {[%emt
00:05:43]} 30. Qe5 {[%clk 00:22:01]} {[%emt 00:00:27]} Qb6 {[%clk 00:12:48]}
{[%emt 00:03:10]} 31. e4 {[%clk 00:15:13]} {[%emt 00:07:17]} f6 {[%clk
00:11:46]} {[%emt 00:01:33]} 32. Qh5 {[%clk 00:15:25]} {[%emt 00:00:18]} Nc3
{[%clk 00:11:41]} {[%emt 00:00:35]} 33. Rbd2 {[%clk 00:14:51]} {[%emt
00:01:04]} Rcd8 {[%clk 00:10:28]} {[%emt 00:01:43]} 34. Qg4 {[%clk 00:14:13]}
{[%emt 00:01:08]} Rxd4 {[%clk 00:08:34]} {[%emt 00:02:24]} 35. Nxd4 {[%clk
00:14:04]} {[%emt 00:00:39]} Re8 {[%clk 00:05:28]} {[%emt 00:03:37]} 36. Nb5
{[%clk 00:09:15]} {[%emt 00:05:19]} Qc6 {[%clk 00:05:19]} {[%emt 00:00:38]} 37.
Nd6 {[%clk 00:08:26]} {[%emt 00:01:19]} f5 {[%clk 00:04:58]} {[%emt 00:00:51]}
38. Qf3 {[%clk 00:08:28]} {[%emt 00:00:27]} Rf8 {[%clk 00:03:05]} {[%emt
00:02:24]} 39. exf5 {[%clk 00:08:36]} {[%emt 00:00:23]} Nd5 {[%clk 00:02:08]}
{[%emt 00:01:26]} 40. Qe4 {[%clk 00:05:43]} {[%emt 00:03:22]} Qxd6 {[%clk
00:02:20]} {[%emt 00:00:19]} 41. fxe6 {[%clk 00:06:08]} {[%emt 00:00:05]} Nf6
{[%clk 00:00:46]} {[%emt 00:02:04]} 42. Qc4 {[%clk 00:05:00]} {[%emt 00:01:37]}
Qxd2 {[%clk 00:01:01]} {[%emt 00:00:15]} 43. e7+ {[%clk 00:05:21]} {[%emt
00:00:09]} Qd5+ {[%clk 00:01:26]} {[%emt 00:00:05]} 0-1